[Event "Titled Tuesday Blitz February 28 Early 2023"]
[White "Goltseva, Ekaterina"]
[Black "Koellner, Ruben Gideon"]
[WhiteFideId "24173770"]
[BlackFideId "12993093"]
[WhiteElo "2200"]
[BlackElo "2303"]
[Result "0-1"]
[Round "09"]
[TimeControl "180+2"]
[Date "2023.02.28"]
[WhiteClock "0:00:01"]
[BlackClock "0:00:42"]

1. Nf3 {[%clk 0:03:00]}  d6 {[%clk 0:02:55]} 2. b3 {[%clk 0:03:00]}  e5 {[%clk 0:02:54]} 3. d3 {[%clk 0:03:01]}  f5 {[%clk 0:02:54]} 4. Bb2 {[%clk 0:03:01]}  Nf6 {[%clk 0:02:54]} 5. c4 {[%clk 0:03:02]}  Be7 {[%clk 0:02:54]} 6. Nc3 {[%clk 0:03:03]}  O-O {[%clk 0:02:55]} 7. e3 {[%clk 0:03:03]}  Be6 {[%clk 0:02:56]} 8. Be2 {[%clk 0:03:04]}  c6 {[%clk 0:02:57]} 9. O-O {[%clk 0:03:04]}  Nbd7 {[%clk 0:02:58]} 10. d4 {[%clk 0:02:59]}  e4 {[%clk 0:02:58]} 11. Nd2 {[%clk 0:02:59]}  d5 {[%clk 0:02:58]} 12. f3 {[%clk 0:02:57]}  Bd6 {[%clk 0:02:57]} 13. f4 {[%clk 0:02:54]}  h6 {[%clk 0:02:55]} 14. Kh1 {[%clk 0:02:53]}  g5 {[%clk 0:02:55]} 15. g3 {[%clk 0:02:49]}  Kg7 {[%clk 0:02:55]} 16. Rg1 {[%clk 0:02:38]}  g4 {[%clk 0:02:55]} 17. Kg2 {[%clk 0:02:34]}  h5 {[%clk 0:02:54]} 18. c5 {[%clk 0:02:28]}  Bc7 {[%clk 0:02:53]} 19. b4 {[%clk 0:02:29]}  a6 {[%clk 0:02:53]} 20. a4 {[%clk 0:02:29]}  Rh8 {[%clk 0:02:50]} 21. b5 {[%clk 0:02:29]}  Qe7 {[%clk 0:02:47]} 22. bxc6 {[%clk 0:02:24]}  bxc6 {[%clk 0:02:47]} 23. Qf1 {[%clk 0:02:18]}  a5 {[%clk 0:02:44]} 24. Ba3 {[%clk 0:02:13]}  h4 {[%clk 0:02:41]} 25. Rh1 {[%clk 0:02:08]}  Rh5 {[%clk 0:02:39]} 26. Rb1 {[%clk 0:02:05]}  Rah8 {[%clk 0:02:34]} 27. Qf2 {[%clk 0:02:05]}  Kg6 {[%clk 0:02:26]} 28. Rb7 {[%clk 0:01:58]}  hxg3 {[%clk 0:02:23]} 29. Qxg3 {[%clk 0:01:58]}  Bb8 {[%clk 0:02:11]} 30. Nf1 {[%clk 0:01:45]}  Rh3 {[%clk 0:01:52]} 31. Qf2 {[%clk 0:01:41]}  Nh5 {[%clk 0:01:52]} 32. Rb1 {[%clk 0:01:32]}  Bc7 {[%clk 0:01:33]} 33. Ba6 {[%clk 0:00:48]}  Rf3 {[%clk 0:01:25]} 34. Qe1 {[%clk 0:00:42]}  Bxf4 {[%clk 0:01:21]} 35. Be2 {[%clk 0:00:19]}  Bc7 {[%clk 0:00:58]} 36. Bxf3 {[%clk 0:00:17]}  gxf3+ {[%clk 0:00:59]} 37. Kf2 {[%clk 0:00:08]}  Qh4+ {[%clk 0:00:55]} 38. Kg1 {[%clk 0:00:08]}  Qg5+ {[%clk 0:00:50]} 39. Ng3 {[%clk 0:00:06]}  Nxg3 {[%clk 0:00:48]} 40. hxg3 {[%clk 0:00:06]}  Bxg3 {[%clk 0:00:47]} 41. Qd2 {[%clk 0:00:01]}  Be1+ {[%clk 0:00:42]} 0-1


[Site "https://www.chess.com"]

[Event "Titled Tuesday Blitz February 28 Early 2023"]
[White "Reprintsev, Alexander"]
[Black "Sreyas Payyappat"]
[WhiteFideId "14100541"]
[BlackFideId "46674969"]
[WhiteElo "2250"]
[BlackElo "2083"]
[Result "1-0"]
[Round "09"]
[TimeControl "180+2"]
[Date "2023.02.28"]
[WhiteClock "0:00:23"]
[BlackClock "0:00:01"]

1. e4 {[%clk 0:02:56]}  c6 {[%clk 0:02:59]} 2. Nc3 {[%clk 0:02:55]}  d5 {[%clk 0:02:59]} 3. Nf3 {[%clk 0:02:55]}  dxe4 {[%clk 0:02:59]} 4. Nxe4 {[%clk 0:02:55]}  Nf6 {[%clk 0:03:00]} 5. Qe2 {[%clk 0:02:55]}  Nxe4 {[%clk 0:02:59]} 6. Qxe4 {[%clk 0:02:55]}  Nd7 {[%clk 0:03:00]} 7. Bc4 {[%clk 0:02:50]}  Nf6 {[%clk 0:03:00]} 8. Ne5 {[%clk 0:02:50]}  e6 {[%clk 0:03:01]} 9. Qe2 {[%clk 0:02:50]}  b5 {[%clk 0:02:58]} 10. Bb3 {[%clk 0:02:50]}  Qc7 {[%clk 0:02:56]} 11. d4 {[%clk 0:02:49]}  Bd6 {[%clk 0:02:55]} 12. a4 {[%clk 0:02:42]}  b4 {[%clk 0:02:53]} 13. Nc4 {[%clk 0:02:39]}  O-O {[%clk 0:02:50]} 14. Nxd6 {[%clk 0:02:38]}  Qxd6 {[%clk 0:02:51]} 15. Qe5 {[%clk 0:02:26]}  Qxe5+ {[%clk 0:02:49]} 16. dxe5 {[%clk 0:02:25]}  Nd7 {[%clk 0:02:45]} 17. Bf4 {[%clk 0:02:20]}  Ba6 {[%clk 0:02:45]} 18. O-O-O {[%clk 0:02:20]}  Nc5 {[%clk 0:02:44]} 19. Rd6 {[%clk 0:02:17]}  Rac8 {[%clk 0:02:35]} 20. Be3 {[%clk 0:02:17]}  Nxb3+ {[%clk 0:02:34]} 21. cxb3 {[%clk 0:02:18]}  Rc7 {[%clk 0:02:28]} 22. Bc5 {[%clk 0:02:16]}  g6 {[%clk 0:02:24]} 23. Rhd1 {[%clk 0:02:09]}  Kg7 {[%clk 0:02:12]} 24. Rd7 {[%clk 0:02:04]}  Rfc8 {[%clk 0:02:10]} 25. Bxa7 {[%clk 0:01:57]}  c5 {[%clk 0:02:09]} 26. Bb6 {[%clk 0:01:54]}  Rc6 {[%clk 0:02:08]} 27. Bd8 {[%clk 0:01:52]}  c4 {[%clk 0:02:00]} 28. Bf6+ {[%clk 0:01:51]}  Kh6 {[%clk 0:02:00]} 29. bxc4 {[%clk 0:01:41]}  Bxc4 {[%clk 0:00:38]} 30. R1d4 {[%clk 0:01:39]}  Bd5+ {[%clk 0:00:18]} 31. Kd2 {[%clk 0:01:37]}  Rc2+ {[%clk 0:00:17]} 32. Ke3 {[%clk 0:01:37]}  g5 {[%clk 0:00:16]} 33. Rxb4 {[%clk 0:01:27]}  Rc1 {[%clk 0:00:15]} 34. h4 {[%clk 0:01:05]}  Re1+ {[%clk 0:00:10]} 35. Kd2 {[%clk 0:01:05]}  Rcc1 {[%clk 0:00:11]} 36. Bxg5+ {[%clk 0:01:03]}  Kg6 {[%clk 0:00:11]} 37. Be3 {[%clk 0:00:50]}  Red1+ {[%clk 0:00:10]} 38. Ke2 {[%clk 0:00:51]}  Re1+ {[%clk 0:00:10]} 39. Kd3 {[%clk 0:00:50]}  Rcd1+ {[%clk 0:00:08]} 40. Kc3 {[%clk 0:00:43]}  Re2 {[%clk 0:00:05]} 41. Rg4+ {[%clk 0:00:40]}  Kh5 {[%clk 0:00:05]} 42. Rg7 {[%clk 0:00:32]}  Kxh4 {[%clk 0:00:03]} 43. Rdxf7 {[%clk 0:00:31]}  Be4 {[%clk 0:00:02]} 44. Rf4+ {[%clk 0:00:26]}  Kh5 {[%clk 0:00:03]} 45. Rxe4 {[%clk 0:00:26]}  Rc2+ {[%clk 0:00:01]} 46. Kxc2 {[%clk 0:00:25]}  Rc1+ {[%clk 0:00:01]} 47. Kxc1 {[%clk 0:00:23]} 1-0


[Site "https://www.chess.com"]

[Event "Titled Tuesday Blitz February 28 Early 2023"]
[White "Bogaudinov, Rushan"]
[Black "Martin Carmona, Gaston Manuel"]
[WhiteFideId "4129288"]
[BlackFideId "22284567"]
[WhiteElo "2063"]
[BlackElo "2245"]
[Result "0-1"]
[Round "09"]
[TimeControl "180+2"]
[Date "2023.02.28"]
[WhiteClock "0:00:17"]
[BlackClock "0:01:29"]

1. e4 {[%clk 0:02:58]}  c5 {[%clk 0:02:59]} 2. Nf3 {[%clk 0:02:54]}  d6 {[%clk 0:02:59]} 3. d4 {[%clk 0:02:52]}  cxd4 {[%clk 0:03:00]} 4. Nxd4 {[%clk 0:02:53]}  Nf6 {[%clk 0:03:01]} 5. Nc3 {[%clk 0:02:53]}  g6 {[%clk 0:03:02]} 6. Be3 {[%clk 0:02:48]}  Bg7 {[%clk 0:03:02]} 7. Be2 {[%clk 0:02:44]}  Nc6 {[%clk 0:03:03]} 8. O-O {[%clk 0:02:42]}  O-O {[%clk 0:03:02]} 9. Qd2 {[%clk 0:02:39]}  Nxd4 {[%clk 0:02:58]} 10. Bxd4 {[%clk 0:02:39]}  Be6 {[%clk 0:02:59]} 11. Rfe1 {[%clk 0:02:26]}  Qa5 {[%clk 0:02:58]} 12. Bf1 {[%clk 0:02:22]}  Rac8 {[%clk 0:02:57]} 13. Rad1 {[%clk 0:02:14]}  Rfd8 {[%clk 0:02:56]} 14. a3 {[%clk 0:02:07]}  Ng4 {[%clk 0:02:50]} 15. Bxg7 {[%clk 0:02:02]}  Kxg7 {[%clk 0:02:51]} 16. h3 {[%clk 0:01:59]}  Ne5 {[%clk 0:02:48]} 17. Nd5 {[%clk 0:01:52]}  Qxd2 {[%clk 0:02:46]} 18. Rxd2 {[%clk 0:01:53]}  Bxd5 {[%clk 0:02:37]} 19. exd5 {[%clk 0:01:53]}  Kf6 {[%clk 0:02:34]} 20. b3 {[%clk 0:01:44]}  Rc3 {[%clk 0:02:33]} 21. f4 {[%clk 0:01:39]}  Nd7 {[%clk 0:02:33]} 22. Kf2 {[%clk 0:01:17]}  Rdc8 {[%clk 0:02:31]} 23. Bd3 {[%clk 0:01:16]}  Nc5 {[%clk 0:02:30]} 24. Bc4 {[%clk 0:01:10]}  a6 {[%clk 0:02:29]} 25. Re3 {[%clk 0:01:06]}  Rxe3 {[%clk 0:02:25]} 26. Kxe3 {[%clk 0:01:07]}  b5 {[%clk 0:02:26]} 27. Be2 {[%clk 0:01:05]}  h5 {[%clk 0:02:08]} 28. g4 {[%clk 0:00:53]}  hxg4 {[%clk 0:02:08]} 29. hxg4 {[%clk 0:00:54]}  g5 {[%clk 0:02:06]} 30. fxg5+ {[%clk 0:00:52]}  Kxg5 {[%clk 0:02:07]} 31. Kd4 {[%clk 0:00:51]}  Kf4 {[%clk 0:02:01]} 32. b4 {[%clk 0:00:48]}  Na4 {[%clk 0:01:57]} 33. c4 {[%clk 0:00:48]}  e5+ {[%clk 0:01:33]} 34. dxe6 {[%clk 0:00:46]}  fxe6 {[%clk 0:01:33]} 35. cxb5 {[%clk 0:00:41]}  e5+ {[%clk 0:01:34]} 36. Kd5 {[%clk 0:00:35]}  Nc3+ {[%clk 0:01:31]} 37. Kxd6 {[%clk 0:00:29]}  Rd8+ {[%clk 0:01:31]} 38. Kc7 {[%clk 0:00:21]}  Rxd2 {[%clk 0:01:32]} 39. b6 {[%clk 0:00:17]}  Nd5+ {[%clk 0:01:29]} 40. Kc6 {[%clk 0:00:16]}  Nxb6 {[%clk 0:01:29]} 41. Kxb6 {[%clk 0:00:17]}  Rxe2 {[%clk 0:01:29]} 42. Kxa6 {[%clk 0:00:17]}  Ra2 {[%clk 0:01:29]} 0-1


[Site "https://www.chess.com"]

[Event "Titled Tuesday Blitz February 28 Early 2023"]
[White "Avazkhonov, Alikhon"]
[Black "Thorhallsson, Simon"]
[WhiteFideId "14208504"]
[BlackFideId "2310090"]
[WhiteElo "1739"]
[BlackElo "2108"]
[Result "0-1"]
[Round "09"]
[TimeControl "180+2"]
[Date "2023.02.28"]
[WhiteClock "0:00:14"]
[BlackClock "0:00:05"]

1. d4 {[%clk 0:03:00]}  Nf6 {[%clk 0:02:59]} 2. c4 {[%clk 0:03:01]}  e6 {[%clk 0:03:00]} 3. Nc3 {[%clk 0:03:02]}  Bb4 {[%clk 0:02:59]} 4. e3 {[%clk 0:03:02]}  O-O {[%clk 0:02:59]} 5. Bd2 {[%clk 0:03:03]}  d5 {[%clk 0:02:58]} 6. Nf3 {[%clk 0:03:03]}  c5 {[%clk 0:02:57]} 7. a3 {[%clk 0:02:54]}  Bxc3 {[%clk 0:02:57]} 8. Bxc3 {[%clk 0:02:54]}  Ne4 {[%clk 0:02:58]} 9. Rc1 {[%clk 0:02:55]}  Nxc3 {[%clk 0:02:56]} 10. Rxc3 {[%clk 0:02:56]}  cxd4 {[%clk 0:02:57]} 11. Nxd4 {[%clk 0:02:44]}  dxc4 {[%clk 0:02:43]} 12. Bxc4 {[%clk 0:02:45]}  a6 {[%clk 0:02:43]} 13. O-O {[%clk 0:02:43]}  b5 {[%clk 0:02:42]} 14. Be2 {[%clk 0:02:43]}  Bb7 {[%clk 0:02:41]} 15. Bf3 {[%clk 0:02:43]}  Qb6 {[%clk 0:02:35]} 16. b4 {[%clk 0:02:34]}  Rd8 {[%clk 0:02:30]} 17. Qc2 {[%clk 0:02:30]}  Bxf3 {[%clk 0:02:18]} 18. Nxf3 {[%clk 0:02:30]}  Nd7 {[%clk 0:02:17]} 19. Rd1 {[%clk 0:02:31]}  Nf6 {[%clk 0:02:11]} 20. Ne5 {[%clk 0:02:27]}  Rxd1+ {[%clk 0:02:01]} 21. Qxd1 {[%clk 0:02:28]}  Nd5 {[%clk 0:02:01]} 22. Rc6 {[%clk 0:02:21]}  Qb7 {[%clk 0:01:46]} 23. e4 {[%clk 0:02:13]}  Ne7 {[%clk 0:01:23]} 24. Rd6 {[%clk 0:02:08]}  g6 {[%clk 0:01:06]} 25. Nd7 {[%clk 0:01:21]}  Qc7 {[%clk 0:00:21]} 26. g3 {[%clk 0:01:19]}  Nc6 {[%clk 0:00:15]} 27. Nf6+ {[%clk 0:00:53]}  Kg7 {[%clk 0:00:15]} 28. Qa1 {[%clk 0:00:53]}  e5 {[%clk 0:00:15]} 29. Qd1 {[%clk 0:00:46]}  Nd4 {[%clk 0:00:14]} 30. Rxd4 {[%clk 0:00:38]}  exd4 {[%clk 0:00:14]} 31. Qxd4 {[%clk 0:00:39]}  Qd8 {[%clk 0:00:08]} 32. Nh5+ {[%clk 0:00:22]}  Kh6 {[%clk 0:00:05]} 33. Qg7+ {[%clk 0:00:20]}  Kxh5 {[%clk 0:00:05]} 34. Qxh7+ {[%clk 0:00:21]}  Kg4 {[%clk 0:00:04]} 35. Kg2 {[%clk 0:00:19]}  Qh8 {[%clk 0:00:01]} 36. h3+ {[%clk 0:00:16]}  Kg5 {[%clk 0:00:01]} 37. h4+ {[%clk 0:00:17]}  Kf6 {[%clk 0:00:02]} 38. e5+ {[%clk 0:00:15]}  Ke7 {[%clk 0:00:02]} 39. Qxh8 {[%clk 0:00:14]}  Rxh8 {[%clk 0:00:02]} 40. Kf3 {[%clk 0:00:14]}  Rc8 {[%clk 0:00:03]} 41. Ke4 {[%clk 0:00:15]}  Rc3 {[%clk 0:00:04]} 42. Kd5 {[%clk 0:00:14]}  Rxa3 {[%clk 0:00:05]} 0-1


[Site "https://www.chess.com"]

[Event "Titled Tuesday Blitz February 28 Early 2023"]
[White "Llanos, Guillermo"]
[Black "Bilan, Danila"]
[WhiteFideId "100358"]
[BlackFideId "24161918"]
[WhiteElo "2225"]
[BlackElo "2182"]
[Result "1-0"]
[Round "09"]
[TimeControl "180+2"]
[Date "2023.02.28"]
[WhiteClock "0:00:49"]
[BlackClock "0:00:04"]

1. d4 {[%clk 0:03:00]}  d5 {[%clk 0:02:59]} 2. c4 {[%clk 0:03:00]}  c6 {[%clk 0:03:00]} 3. Nf3 {[%clk 0:03:00]}  Nf6 {[%clk 0:03:00]} 4. Nc3 {[%clk 0:02:59]}  e6 {[%clk 0:03:00]} 5. e3 {[%clk 0:02:57]}  Nbd7 {[%clk 0:03:00]} 6. Be2 {[%clk 0:02:55]}  Bd6 {[%clk 0:03:00]} 7. b3 {[%clk 0:02:53]}  O-O {[%clk 0:02:46]} 8. Bb2 {[%clk 0:02:53]}  Ne4 {[%clk 0:02:45]} 9. Nxe4 {[%clk 0:02:50]}  dxe4 {[%clk 0:02:45]} 10. Nd2 {[%clk 0:02:49]}  f5 {[%clk 0:02:44]} 11. Qc2 {[%clk 0:02:49]}  Qe7 {[%clk 0:02:27]} 12. c5 {[%clk 0:02:46]}  Bc7 {[%clk 0:02:26]} 13. O-O-O {[%clk 0:02:39]}  Nf6 {[%clk 0:02:08]} 14. f3 {[%clk 0:02:29]}  Nd5 {[%clk 0:02:02]} 15. Nc4 {[%clk 0:02:19]}  exf3 {[%clk 0:01:48]} 16. Bxf3 {[%clk 0:02:15]}  b5 {[%clk 0:01:47]} 17. Ne5 {[%clk 0:01:55]}  Bxe5 {[%clk 0:01:01]} 18. Bxd5 {[%clk 0:01:47]}  cxd5 {[%clk 0:00:54]} 19. dxe5 {[%clk 0:01:46]}  b4 {[%clk 0:00:52]} 20. a4 {[%clk 0:01:33]}  bxa3 {[%clk 0:00:42]} 21. Bxa3 {[%clk 0:01:32]}  Qc7 {[%clk 0:00:43]} 22. Qc3 {[%clk 0:01:26]}  a5 {[%clk 0:00:42]} 23. Kb2 {[%clk 0:01:24]}  Ba6 {[%clk 0:00:38]} 24. c6 {[%clk 0:01:22]}  Rfc8 {[%clk 0:00:33]} 25. Rc1 {[%clk 0:01:21]}  Bb5 {[%clk 0:00:30]} 26. Bd6 {[%clk 0:01:17]}  Qxc6 {[%clk 0:00:26]} 27. Qxc6 {[%clk 0:01:16]}  Rxc6 {[%clk 0:00:22]} 28. Rxc6 {[%clk 0:01:15]}  Bxc6 {[%clk 0:00:22]} 29. Rc1 {[%clk 0:01:12]}  Rc8 {[%clk 0:00:20]} 30. Rc5 {[%clk 0:01:06]}  Kf7 {[%clk 0:00:18]} 31. Rxa5 {[%clk 0:01:05]}  d4 {[%clk 0:00:18]} 32. exd4 {[%clk 0:01:04]}  Bxg2 {[%clk 0:00:18]} 33. Ra7+ {[%clk 0:01:04]}  Kg6 {[%clk 0:00:16]} 34. b4 {[%clk 0:01:03]}  Be4 {[%clk 0:00:13]} 35. Bc5 {[%clk 0:01:03]}  Rb8 {[%clk 0:00:08]} 36. Kc3 {[%clk 0:01:01]}  Bd5 {[%clk 0:00:08]} 37. Kd2 {[%clk 0:01:01]}  h6 {[%clk 0:00:07]} 38. Ke3 {[%clk 0:01:00]}  Bb7 {[%clk 0:00:07]} 39. Kf4 {[%clk 0:00:59]}  Kh5 {[%clk 0:00:07]} 40. b5 {[%clk 0:00:55]}  g5+ {[%clk 0:00:07]} 41. Ke3 {[%clk 0:00:55]}  f4+ {[%clk 0:00:07]} 42. Kf2 {[%clk 0:00:55]}  Kg4 {[%clk 0:00:07]} 43. b6 {[%clk 0:00:55]}  h5 {[%clk 0:00:07]} 44. Bd6 {[%clk 0:00:55]}  Rc8 {[%clk 0:00:05]} 45. Rxb7 {[%clk 0:00:54]}  Rc2+ {[%clk 0:00:06]} 46. Ke1 {[%clk 0:00:54]}  Kf3 {[%clk 0:00:05]} 47. Rc7 {[%clk 0:00:53]}  Rb2 {[%clk 0:00:04]} 48. b7 {[%clk 0:00:53]}  Ke4 {[%clk 0:00:04]} 49. Rf7 {[%clk 0:00:51]}  Rb1+ {[%clk 0:00:04]} 50. Kd2 {[%clk 0:00:51]}  Rb2+ {[%clk 0:00:04]} 51. Kc3 {[%clk 0:00:51]}  Rxh2 {[%clk 0:00:04]} 52. b8=Q {[%clk 0:00:50]}  Rh3+ {[%clk 0:00:05]} 53. Kc4 {[%clk 0:00:50]}  Ke3 {[%clk 0:00:04]} 54. Qb3+ {[%clk 0:00:49]} 1-0


[Site "https://www.chess.com"]

[Event "Titled Tuesday Blitz February 28 Early 2023"]
[White "Ljukin, Sergei"]
[Black "Liu, Casper"]
[WhiteFideId "14102200"]
[BlackFideId "1454153"]
[WhiteElo "2312"]
[BlackElo "2221"]
[Result "1-0"]
[Round "09"]
[TimeControl "180+2"]
[Date "2023.02.28"]
[WhiteClock "0:00:03"]
[BlackClock "0:01:25"]

1. e4 {[%clk 0:02:48]}  c5 {[%clk 0:02:53]} 2. Nf3 {[%clk 0:02:47]}  d6 {[%clk 0:02:53]} 3. d4 {[%clk 0:02:47]}  cxd4 {[%clk 0:02:54]} 4. Nxd4 {[%clk 0:02:48]}  Nf6 {[%clk 0:02:55]} 5. Nc3 {[%clk 0:02:47]}  Nc6 {[%clk 0:02:56]} 6. Bc4 {[%clk 0:02:46]}  e6 {[%clk 0:02:55]} 7. Be3 {[%clk 0:02:45]}  Bd7 {[%clk 0:02:55]} 8. Qe2 {[%clk 0:02:44]}  Rc8 {[%clk 0:02:56]} 9. O-O-O {[%clk 0:02:41]}  Qa5 {[%clk 0:02:56]} 10. Bb3 {[%clk 0:02:01]}  Nb4 {[%clk 0:02:29]} 11. f3 {[%clk 0:01:49]}  Rxc3 {[%clk 0:02:28]} 12. bxc3 {[%clk 0:01:47]}  Nxa2+ {[%clk 0:02:29]} 13. Bxa2 {[%clk 0:01:45]}  Qxa2 {[%clk 0:02:30]} 14. Kd2 {[%clk 0:01:43]}  Qa5 {[%clk 0:02:12]} 15. Ra1 {[%clk 0:01:42]}  Qc7 {[%clk 0:02:11]} 16. Rxa7 {[%clk 0:01:22]}  Be7 {[%clk 0:02:10]} 17. Rb1 {[%clk 0:01:22]}  O-O {[%clk 0:02:09]} 18. Rbxb7 {[%clk 0:01:20]}  Qc8 {[%clk 0:02:07]} 19. Rc7 {[%clk 0:01:13]}  Qd8 {[%clk 0:02:03]} 20. g4 {[%clk 0:01:08]}  d5 {[%clk 0:01:59]} 21. e5 {[%clk 0:01:06]}  Qb8 {[%clk 0:01:51]} 22. exf6 {[%clk 0:01:02]}  Bxf6 {[%clk 0:01:50]} 23. Rxd7 {[%clk 0:01:01]}  e5 {[%clk 0:01:50]} 24. Rdb7 {[%clk 0:00:32]}  Qc8 {[%clk 0:01:49]} 25. Rc7 {[%clk 0:00:31]}  Qe8 {[%clk 0:01:47]} 26. Nc6 {[%clk 0:00:21]}  e4 {[%clk 0:01:46]} 27. f4 {[%clk 0:00:20]}  h6 {[%clk 0:01:39]} 28. g5 {[%clk 0:00:18]}  hxg5 {[%clk 0:01:39]} 29. fxg5 {[%clk 0:00:18]}  Bd8 {[%clk 0:01:39]} 30. Rc8 {[%clk 0:00:14]}  d4 {[%clk 0:01:36]} 31. Rxd8 {[%clk 0:00:11]}  dxe3+ {[%clk 0:01:35]} 32. Qxe3 {[%clk 0:00:10]}  Qxc6 {[%clk 0:01:36]} 33. Rxf8+ {[%clk 0:00:09]}  Kxf8 {[%clk 0:01:37]} 34. Qd4 {[%clk 0:00:08]}  Kg8 {[%clk 0:01:36]} 35. h4 {[%clk 0:00:06]}  Qe6 {[%clk 0:01:35]} 36. h5 {[%clk 0:00:04]}  Qg4 {[%clk 0:01:32]} 37. g6 {[%clk 0:00:04]}  Qg2+ {[%clk 0:01:26]} 38. Kc1 {[%clk 0:00:04]}  fxg6 {[%clk 0:01:25]} 39. Qxg7# {[%clk 0:00:03]} 1-0


[Site "https://www.chess.com"]

[Event "Titled Tuesday Blitz February 28 Early 2023"]
[White "Klepikov, Nikita"]
[Black "Ambartsumova, Karina"]
[WhiteFideId "24145220"]
[BlackFideId "4166299"]
[WhiteElo "2025"]
[BlackElo "2319"]
[Result "0-1"]
[Round "09"]
[TimeControl "180+2"]
[Date "2023.02.28"]
[WhiteClock "0:00:02"]
[BlackClock "0:01:10"]

1. e4 {[%clk 0:03:00]}  c5 {[%clk 0:02:59]} 2. Nf3 {[%clk 0:03:01]}  Nc6 {[%clk 0:02:59]} 3. d4 {[%clk 0:03:01]}  cxd4 {[%clk 0:03:00]} 4. Nxd4 {[%clk 0:03:01]}  Qb6 {[%clk 0:03:00]} 5. Nb3 {[%clk 0:02:54]}  Nf6 {[%clk 0:03:00]} 6. Nc3 {[%clk 0:02:53]}  e6 {[%clk 0:03:00]} 7. Be3 {[%clk 0:02:53]}  Qc7 {[%clk 0:03:00]} 8. Nb5 {[%clk 0:02:27]}  Qb8 {[%clk 0:02:56]} 9. Bd3 {[%clk 0:01:28]}  d5 {[%clk 0:02:49]} 10. exd5 {[%clk 0:01:25]}  Nxd5 {[%clk 0:02:50]} 11. Bg5 {[%clk 0:01:14]}  Qe5+ {[%clk 0:02:39]} 12. Be3 {[%clk 0:01:14]}  Nxe3 {[%clk 0:02:30]} 13. fxe3 {[%clk 0:01:15]}  a6 {[%clk 0:02:30]} 14. N5d4 {[%clk 0:01:11]}  Nxd4 {[%clk 0:02:25]} 15. Nxd4 {[%clk 0:01:06]}  Qxe3+ {[%clk 0:02:25]} 16. Ne2 {[%clk 0:00:55]}  Bc5 {[%clk 0:02:22]} 17. Rf1 {[%clk 0:00:55]}  O-O {[%clk 0:02:14]} 18. Qd2 {[%clk 0:00:55]}  Qe5 {[%clk 0:02:13]} 19. Qc3 {[%clk 0:00:41]}  Qxc3+ {[%clk 0:02:11]} 20. Nxc3 {[%clk 0:00:41]}  e5 {[%clk 0:02:09]} 21. O-O-O {[%clk 0:00:28]}  Be6 {[%clk 0:02:09]} 22. Be4 {[%clk 0:00:27]}  Rab8 {[%clk 0:02:05]} 23. a3 {[%clk 0:00:16]}  b5 {[%clk 0:01:59]} 24. Bd3 {[%clk 0:00:10]}  Rfc8 {[%clk 0:01:50]} 25. h3 {[%clk 0:00:10]}  Bxa3 {[%clk 0:01:45]} 26. bxa3 {[%clk 0:00:05]}  Rxc3 {[%clk 0:01:45]} 27. Kb2 {[%clk 0:00:05]}  Rc5 {[%clk 0:01:40]} 28. g4 {[%clk 0:00:03]}  b4 {[%clk 0:01:34]} 29. axb4 {[%clk 0:00:03]}  Rxb4+ {[%clk 0:01:35]} 30. Kc1 {[%clk 0:00:02]}  Ra5 {[%clk 0:01:20]} 31. Kd2 {[%clk 0:00:03]}  g6 {[%clk 0:01:19]} 32. Ra1 {[%clk 0:00:03]}  Rba4 {[%clk 0:01:17]} 33. Rxa4 {[%clk 0:00:03]}  Rxa4 {[%clk 0:01:18]} 34. Rb1 {[%clk 0:00:03]}  e4 {[%clk 0:01:15]} 35. Be2 {[%clk 0:00:02]}  a5 {[%clk 0:01:14]} 36. Rb6 {[%clk 0:00:02]}  h6 {[%clk 0:01:12]} 37. Ra6 {[%clk 0:00:02]}  Kg7 {[%clk 0:01:12]} 38. c4 {[%clk 0:00:02]}  Ra2+ {[%clk 0:01:09]} 39. Ke3 {[%clk 0:00:02]}  Rxe2+ {[%clk 0:01:09]} 40. Kxe2 {[%clk 0:00:02]}  Bxc4+ {[%clk 0:01:10]} 0-1


[Site "https://www.chess.com"]

[Event "Titled Tuesday Blitz February 28 Early 2023"]
[White "Seletsky, Grigory"]
[Black "Sharapov, Evgeny"]
[WhiteFideId "14112191"]
[BlackFideId "14103133"]
[WhiteElo "2490"]
[BlackElo "2367"]
[Result "1-0"]
[Round "09"]
[TimeControl "180+2"]
[Date "2023.02.28"]
[WhiteClock "0:02:58"]
[BlackClock "0:02:25"]

1. e4 {[%clk 0:03:00]}  c5 {[%clk 0:02:59]} 2. Nc3 {[%clk 0:03:00]}  Nc6 {[%clk 0:02:59]} 3. d3 {[%clk 0:02:59]}  g6 {[%clk 0:02:59]} 4. Be3 {[%clk 0:02:59]}  d6 {[%clk 0:02:58]} 5. d4 {[%clk 0:02:59]}  cxd4 {[%clk 0:02:58]} 6. Bxd4 {[%clk 0:03:00]}  Nxd4 {[%clk 0:02:56]} 7. Qxd4 {[%clk 0:03:01]}  Nf6 {[%clk 0:02:53]} 8. e5 {[%clk 0:03:01]}  dxe5 {[%clk 0:02:52]} 9. Bb5+ {[%clk 0:03:01]}  Bd7 {[%clk 0:02:43]} 10. Qxe5 {[%clk 0:03:01]}  Bxb5 {[%clk 0:02:26]} 11. Nxb5 {[%clk 0:03:00]}  Qa5+ {[%clk 0:02:26]} 12. c3 {[%clk 0:02:59]}  O-O-O {[%clk 0:02:25]} 13. Nd6+ {[%clk 0:02:58]} 1-0


[Site "https://www.chess.com"]

[Event "Titled Tuesday Blitz February 28 Early 2023"]
[White "Balint, Vilmos"]
[Black "Cella, Glaucio Dalla Cortt"]
[WhiteFideId "718050"]
[BlackFideId "2119455"]
[WhiteElo "2034"]
[BlackElo "2011"]
[Result "0-1"]
[Round "09"]
[TimeControl "180+2"]
[Date "2023.02.28"]
[WhiteClock "0:01:18"]
[BlackClock "0:00:47"]

1. e4 {[%clk 0:02:07]}  c5 {[%clk 0:02:59]} 2. Nf3 {[%clk 0:02:06]}  e6 {[%clk 0:03:00]} 3. d4 {[%clk 0:02:06]}  cxd4 {[%clk 0:03:01]} 4. Nxd4 {[%clk 0:02:07]}  Nf6 {[%clk 0:03:01]} 5. Bd3 {[%clk 0:02:06]}  Nc6 {[%clk 0:03:00]} 6. Nxc6 {[%clk 0:02:06]}  bxc6 {[%clk 0:03:01]} 7. O-O {[%clk 0:02:07]}  d5 {[%clk 0:03:01]} 8. exd5 {[%clk 0:02:07]}  cxd5 {[%clk 0:03:01]} 9. c4 {[%clk 0:02:08]}  dxc4 {[%clk 0:02:19]} 10. Bxc4 {[%clk 0:02:07]}  Qxd1 {[%clk 0:02:20]} 11. Rxd1 {[%clk 0:02:07]}  Be7 {[%clk 0:02:20]} 12. Bb5+ {[%clk 0:02:06]}  Bd7 {[%clk 0:02:15]} 13. Bxd7+ {[%clk 0:02:05]}  Nxd7 {[%clk 0:02:16]} 14. Nc3 {[%clk 0:02:03]}  Nb6 {[%clk 0:02:10]} 15. Be3 {[%clk 0:01:59]}  O-O {[%clk 0:02:10]} 16. b3 {[%clk 0:01:40]}  Bf6 {[%clk 0:02:07]} 17. Rac1 {[%clk 0:01:40]}  Rfd8 {[%clk 0:02:06]} 18. Ne4 {[%clk 0:01:39]}  Bb2 {[%clk 0:01:44]} 19. Rb1 {[%clk 0:01:34]}  Rxd1+ {[%clk 0:01:39]} 20. Rxd1 {[%clk 0:01:34]}  Be5 {[%clk 0:01:40]} 21. Bxb6 {[%clk 0:01:26]}  axb6 {[%clk 0:01:37]} 22. Kf1 {[%clk 0:01:23]}  h5 {[%clk 0:01:29]} 23. a4 {[%clk 0:01:23]}  b5 {[%clk 0:01:26]} 24. axb5 {[%clk 0:01:23]}  Rb8 {[%clk 0:01:19]} 25. Nd6 {[%clk 0:01:17]}  Rd8 {[%clk 0:01:13]} 26. b6 {[%clk 0:01:18]}  Rxd6 {[%clk 0:01:04]} 27. Re1 {[%clk 0:01:18]}  Bd4 {[%clk 0:00:48]} 28. b7 {[%clk 0:01:18]}  Rb6 {[%clk 0:00:47]} 29. Rd1 {[%clk 0:01:18]}  e5 {[%clk 0:00:47]} 0-1


[Site "https://www.chess.com"]